bitfinex-derivatives/quotes_SOLF0:USTF0_20241017
["timestamp","ask_amount","ask_price","bid_price","bid_amount"]
[1729165032834,3.2906,151.99,151.94,3.2915]
[1729165033035,3.2906,151.99,151.92,20.67]
[1729165034141,20.67,152.0,151.92,20.67]
[1729165034643,20.67,152.0,151.95,3.2913]
[1729165034844,3.2906,151.99,151.95,3.2913]
[1729165035037,15.79,151.98,151.92,4.88]
[1729165035237,3.2914,151.95,151.9,3.27736875]
[1729165035440,15.79,151.96,151.89,4.88]
[1729165035645,15.79,151.96,151.89,8.11796912]
[1729165036248,19.0812,151.96,151.92,3.2918]
[1729165036444,1.3233,151.99,151.9,15.79]
[1729165036445,15.79,151.98,151.9,15.79]
[1729165036742,8.1708,151.98,151.93,3.2916]
[1729165036946,4.88,151.98,151.92,15.79]
[1729165037648,4.88,151.98,151.95,3.2912]
[1729165037954,4.88,151.99,151.95,3.2912]
[1729165038249,15.79,152.02,151.93,15.79]
[1729165038447,4.88,152.03,151.96,15.79]
[1729165038641,4.88,152.03,151.97,15.79]
[1729165038843,4.88,152.03,151.97,19.14386352]
[1729165039045,8.1697,152.03,151.97,19.14386352]
[1729165039349,4.88,152.03,151.97,3.35386352]
[1729165039552,3.29,152.02,151.95,15.79]
[1729165040054,8.1697,152.03,152.0,3.2902]
[1729165040249,8.1697,152.03,152.0,6.66019578]
[1729165040551,8.1697,152.03,152.0,3.2902]
[1729165040947,8.1697,152.03,152.0,6.55903162]
[1729165041445,4.88,152.03,151.97,15.79]
[1729165041650,4.88,152.03,152.0,3.2901]
[1729165042951,4.88,152.03,151.99,3.2904]
[1729165043348,3.2899,152.02,151.96,15.79]
[1729165043546,4.88,152.03,152.0,3.2902]
[1729165043746,4.88,152.03,152.0,3.3280794]
[1729165043943,4.88,152.03,151.96,15.79]
[1729165044151,4.88,152.03,151.98,15.79]
[1729165044350,4.88,152.03,151.98,19.1210379]
[1729165045256,3.2899,152.02,151.99,3.2905]
[1729165045449,3.2899,152.02,152.0,3.25961855]
[1729165045648,3.2899,152.02,151.97,4.88]
[1729165045844,3.2899,152.02,151.98,3.2906]
[1729165046049,3.2899,152.02,151.98,3.31194886]
[1729165046253,3.2899,152.02,151.97,4.88]
[1729165046756,8.1697,152.03,151.97,8.16759387]
[1729165047357,3.2897,152.03,151.97,8.16759387]
[1729165048651,3.2897,152.03,152.0,3.2902]
[1729165050252,3.2898,152.02,152.0,3.2902]
[1729165050649,3.2902,152.01,151.98,3.2906]
[1729165050850,15.79,152.02,151.97,3.28759387]
[1729165051158,3.2906,151.99,151.96,3.2909]
[1729165051751,8.1704,152.0,151.97,3.2908]
[1729165051947,8.1704,152.0,151.97,6.62743741]
[1729165052151,8.1704,152.0,151.97,3.2908]
[1729165052761,8.1704,152.0,151.97,6.65508637]
[1729165054351,3.2904,152.0,151.97,6.65508637]
[1729165058464,4.88,152.01,151.97,6.65508637]
[1729165058660,15.79,152.0,151.97,3.36428637]
[1729165058853,15.79,152.0,151.92,4.88]
[1729165059057,3.2908,151.98,151.94,3.2913]
[1729165059663,3.2908,151.98,151.95,3.2913]
[1729165059856,15.79,152.0,151.95,3.2913]
[1729165060057,15.79,152.0,151.91,1.64621688]
[1729165060353,15.79,151.96,151.9,1.437]
[1729165060558,15.79,151.94,151.89,4.70106912]
[1729165060759,15.79,151.94,151.89,6.53046912]
[1729165060956,15.79,151.94,151.89,3.23796912]
[1729165061159,3.2918,151.93,151.88,64.33955415]
[1729165061361,3.2918,151.93,151.9,3.2924]
[1729165062666,15.79,151.92,151.88,3.3720784]
[1729165062966,15.79,151.92,151.84,4.82]
[1729165063156,15.79,151.92,151.84,8.17067987]
[1729165063362,3.2924,151.91,151.85,1.64678747]
[1729165063662,3.2924,151.91,151.86,1.64678747]
[1729165063857,3.2924,151.91,151.84,8.17067987]
[1729165064057,15.79,151.94,151.85,17.43684023]
[1729165064367,4.82,151.95,151.86,1.64684023]
[1729165064567,4.82,151.95,151.85,15.79]
[1729165064870,3.2919,151.93,151.85,15.79]
[1729165066368,3.2919,151.93,151.89,3.2925]
[1729165067064,3.2922,151.92,151.88,3.2928]
[1729165072769,3.2918,151.93,151.85,15.79]
[1729165073670,3.2918,151.93,151.89,3.2925]
[1729165074170,15.79,151.94,151.89,3.2925]
[1729165074474,3.292,151.92,151.89,3.2925]
[1729165079768,10.11,151.91,151.89,3.2925]
[1729165080970,10.11,151.9,151.87,3.2929]
[1729165081175,10.11,151.88,151.87,3.2929]
[1729165081369,10.11,151.9,151.85,10.11]
[1729165081673,10.11,151.9,151.88,3.2927]
[1729165084271,10.11,151.89,151.86,3.2932]
[1729165084575,10.11,151.87,151.86,3.2932]
[1729165087673,4.82,151.87,151.84,3.35067987]
[1729165087879,10.11,151.85,151.79,12.9416]
[1729165088080,10.11,151.85,151.8,10.11]
[1729165088776,10.11,151.89,151.83,10.11]
[1729165088977,4.82,151.9,151.84,10.11]
[1729165089180,10.11,151.89,151.84,10.11]
[1729165089375,4.82,151.9,151.86,10.11]
[1729165089580,4.82,151.9,151.86,13.40984961]
[1729165090482,8.1125,151.9,151.87,3.2929]
[1729165090779,13.4025,151.9,151.87,3.2929]
[1729165091687,10.11,151.9,151.86,13.40984961]
[1729165091990,6.2154,151.94,151.87,15.8]
[1729165092180,4.82,151.94,151.87,17.1375]
[1729165092679,4.82,151.94,151.89,15.8]
[1729165092877,4.82,151.94,151.91,3.2921]
[1729165093078,8.1116,151.94,151.91,3.2921]
[1729165093279,3.2916,151.94,151.91,3.2921]
[1729165094074,3.2916,151.94,151.92,3.29744587]
[1729165095378,8.1114,151.95,151.92,3.29744587]
[1729165100890,3.2923,151.91,151.88,3.2927]
[1729165101084,15.8,151.94,151.88,3.23597412]
[1729165101478,3.2922,151.91,151.88,3.23597412]
[1729165102179,15.8,151.92,151.88,3.23597412]
[1729165102490,3.2926,151.9,151.85,1.3511]
[1729165102791,3.2926,151.9,151.86,3.2931]
[1729165103191,3.2926,151.9,151.85,4.70694753]
[1729165103390,3.2926,151.9,151.87,3.293]
[1729165106183,3.2926,151.9,151.85,4.70694753]
[1729165106184,3.2927,151.89,151.85,6.64924753]
[1729165106383,15.8,151.9,151.85,3.35584753]
[1729165106584,15.8,151.9,151.82,1.3804]
[1729165106891,3.2933,151.86,151.83,3.2939]
[1729165107092,3.2933,151.86,151.84,3.31687436]
[1729165107292,8.1131,151.87,151.83,3.2939]
[1729165107793,8.1131,151.87,151.82,1.3804]
[1729165107794,4.82,151.87,151.84,3.37452189]
[1729165107996,3.2934,151.86,151.82,4.6745]
[1729165110791,4.82,151.87,151.86,3.2933]
[1729165110992,3.2927,151.89,151.86,3.37177903]
[1729165111192,4.82,151.9,151.84,15.8]
[1729165111398,4.82,151.9,151.87,3.293]
[1729165113201,10.11,151.89,151.87,3.293]
[1729165115402,14.93,151.9,151.88,3.2926]
[1729165115897,14.93,151.9,151.86,10.11]
[1729165116100,18.2224,151.9,151.87,3.293]
[1729165118303,3.2922,151.91,151.88,10.11]
[1729165118907,4.82,151.92,151.9,3.2924]
[1729165120000,3.2918,151.93,151.89,10.11]
[1729165120199,10.11,151.94,151.91,3.2921]
[1729165120200,4.82,151.94,151.91,3.2921]
[1729165120400,14.93,151.94,151.89,10.11]
[1729165121100,3.2918,151.93,151.9,3.2922]
[1729165121301,3.2918,151.93,151.89,10.11]
[1729165121609,3.2918,151.93,151.9,3.2922]
[1729165122214,3.2918,151.93,151.9,3.2923]
[1729165123504,10.11,151.92,151.88,10.11]
[1729165123810,13.4022,151.91,151.86,10.11]
[1729165124207,10.11,151.91,151.86,10.11]
[1729165124402,10.11,151.89,151.84,18.21348152]
[1729165124607,10.11,151.89,151.84,14.93]
[1729165124803,10.11,151.87,151.83,10.11]
[1729165125306,13.4032,151.87,151.82,11.4904]
[1729165126114,13.4032,151.87,151.83,3.2938]
[1729165127314,3.2932,151.87,151.83,3.2938]
[1729165127609,1.3235,151.94,151.82,1.3804]
[1729165127807,14.93,151.93,151.89,10.11]
[1729165128012,4.82,151.93,151.9,13.4022]
[1729165129209,4.82,151.93,151.91,3.2921]
[1729165129511,18.2215,151.95,151.91,13.4021]
[1729165129900,8.1115,151.95,151.91,3.2921]
[1729165130502,4.82,151.95,151.91,3.2921]
[1729165130708,3.2916,151.94,151.91,3.2921]
[1729165137215,4.82,151.95,151.89,3.35694842]
[1729165137514,8.1115,151.95,151.88,15.81]
[1729165138020,3.2915,151.95,151.88,19.07451422]
[1729165138420,3.2916,151.94,151.91,3.292]
[1729165145322,4.82,151.96,151.88,20.45911422]
[1729165145530,3.2919,151.93,151.9,3.2923]
[1729165146023,3.2919,151.93,151.91,3.2921]
[1729165148628,3.2919,151.93,151.9,3.2924]
[1729165149727,3.2919,151.93,151.91,3.2922]
[1729165153328,3.2922,151.91,151.89,3.2925]
[1729165153629,3.2922,151.91,151.88,4.64911422]
[1729165153630,10.12,151.9,151.88,3.26451422]
[1729165153828,3.2926,151.89,151.86,3.2932]
[1729165154130,3.2926,151.89,151.86,6.59920928]
[1729165154322,3.2926,151.89,151.86,3.2932]
[1729165154828,3.2926,151.89,151.87,3.2931]
[1729165155322,3.2926,151.89,151.85,18.21130358]
[1729165155323,10.12,151.89,151.85,18.21130358]
[1729165155624,3.2928,151.88,151.86,3.2933]
[1729165156532,13.4127,151.89,151.86,3.2933]
[1729165158531,3.2931,151.87,151.85,11.38480358]
[1729165158728,3.2931,151.87,151.85,6.56480358]
[1729165159030,13.413,151.88,151.85,6.56480358]
[1729165161139,10.12,151.88,151.85,3.27130358]
[1729165161332,10.12,151.88,151.85,3.2934]
[1729165161630,10.12,151.88,151.85,6.61697104]
[1729165161838,10.12,151.88,151.85,3.2934]
[1729165162026,4.82,151.92,151.85,3.2934]
[1729165162234,10.12,151.88,151.85,3.2934]
[1729165162430,10.12,151.9,151.86,3.2932]
[1729165163138,3.2928,151.89,151.86,6.5083794]
[1729165163331,10.12,151.89,151.86,6.5083794]
[1729165163532,10.12,151.88,151.86,3.2151794]
[1729165163730,10.12,151.88,151.85,3.2934]
[1729165164338,10.12,151.88,151.85,6.61334453]
[1729165164525,10.12,151.86,151.85,3.31994453]
[1729165164731,13.4134,151.86,151.84,3.2937]
[1729165165136,13.4134,151.86,151.83,3.2938]
[1729165165738,10.12,151.86,151.83,3.2938]
[1729165165933,13.4134,151.86,151.82,12.9294]
[1729165166133,13.4134,151.86,151.84,3.2937]
[1729165166341,13.4134,151.86,151.84,6.55072437]
[1729165166537,10.12,151.88,151.84,13.37702437]
[1729165166839,10.12,151.86,151.84,3.25702437]
[1729165167034,13.4134,151.86,151.82,2.8094]
[1729165167229,13.4134,151.86,151.83,3.2938]
[1729165167939,13.4134,151.86,151.84,3.2937]
[1729165168140,13.4134,151.86,151.84,6.66680465]
[1729165168334,13.4134,151.86,151.84,3.2937]
[1729165168939,13.4134,151.86,151.84,6.59299636]
[1729165169137,13.4134,151.86,151.84,3.2937]
[1729165169642,13.4134,151.86,151.84,6.53665164]
[1729165171651,10.12,151.86,151.84,3.24295164]
[1729165171947,3.2935,151.85,151.83,3.2938]
[1729165172646,3.2938,151.84,151.81,8.1142]
[1729165172847,3.2938,151.84,151.81,4.82]
[1729165173041,10.12,151.85,151.81,4.82]
[1729165173241,13.4136,151.85,151.81,4.82]
[1729165173544,13.4136,151.85,151.83,3.2939]
[1729165179456,3.2932,151.87,151.85,3.2933]
[1729165179659,3.2932,151.87,151.86,3.28237989]
[1729165180155,10.12,151.88,151.83,10.12]
[1729165180352,10.12,151.89,151.86,3.2931]
[1729165180563,10.12,151.89,151.86,6.6165577]
[1729165180858,10.12,151.89,151.86,3.2931]
[1729165181358,10.12,151.89,151.86,6.63797173]
[1729165181657,3.2929,151.88,151.86,6.63797173]
[1729165183657,13.4129,151.88,151.86,6.63797173]
[1729165186050,10.12,151.88,151.87,3.2931]
[1729165186251,10.12,151.91,151.86,13.46487173]
[1729165186557,10.12,151.91,151.87,10.12]
[1729165186758,13.4123,151.91,151.88,3.2928]
[1729165187052,13.4123,151.91,151.88,3.37275978]
[1729165187255,13.4123,151.91,151.87,10.12]
[1729165187659,13.4123,151.91,151.87,13.47266618]
[1729165188363,13.4123,151.91,151.88,3.2927]
[1729165192258,3.2923,151.91,151.88,3.2927]
[1729165192465,13.4123,151.91,151.88,3.2927]
[1729165192649,3.2925,151.9,151.88,3.2927]
[1729165195457,13.4123,151.91,151.88,3.2927]
[1729165201955,1.3902,151.96,151.88,10.12]
[1729165202168,16.375,151.95,151.9,10.12]
[1729165202466,16.375,151.95,151.91,10.12]
[1729165202663,16.375,151.95,151.92,3.2919]
[1729165202664,13.4115,151.95,151.92,3.2919]
[1729165202867,10.12,151.93,151.84,6.06938976]
[1729165203064,10.12,151.87,151.84,6.06938976]
[1729165203266,10.12,151.87,151.84,4.66048976]
[1729165203872,10.12,151.87,151.85,3.2933]
[1729165206865,10.12,151.89,151.84,4.66048976]
[1729165207161,10.12,151.91,151.86,10.12]
[1729165207761,10.12,151.91,151.88,3.2927]
[1729165207762,13.4124,151.91,151.88,3.2927]
[1729165208363,10.12,151.89,151.85,4.82]
[1729165208956,13.4126,151.89,151.86,3.2931]
[1729165209161,13.4126,151.89,151.85,4.82]
[1729165209558,10.12,151.89,151.85,4.82]
[1729165209769,10.12,151.87,151.84,4.66048976]
[1729165209966,13.413,151.88,151.84,14.78048976]
[1729165210274,13.413,151.88,151.86,3.2933]
[1729165210465,3.293,151.88,151.86,3.2933]
[1729165210873,10.12,151.9,151.86,10.12]
[1729165211067,3.2923,151.91,151.87,10.12]
[1729165211574,13.4121,151.92,151.89,3.2925]
[1729165211761,10.12,151.92,151.87,10.12]
[1729165212271,13.412,151.92,151.89,3.2925]
[1729165213665,3.292,151.92,151.9,3.2923]
[1729165213862,8.1118,151.93,151.9,10.12]
[1729165214371,13.4116,151.94,151.9,10.12]
[1729165214973,10.12,151.94,151.9,10.12]
[1729165215169,3.2918,151.93,151.91,3.2921]
[1729165215370,4.82,151.95,151.87,1.4448]
[1729165215371,10.12,151.92,151.88,10.12]
[1729165215676,10.12,151.92,151.89,3.2925]
[1729165215677,10.12,151.91,151.89,3.2925]
[1729165217067,10.12,151.92,151.88,10.12]
[1729165217468,10.12,151.94,151.89,10.12]
[1729165217675,3.2918,151.93,151.9,3.2922]
[1729165218075,3.2918,151.93,151.89,10.12]
[1729165218284,3.2918,151.93,151.91,3.2922]
[1729165218976,13.4117,151.94,151.91,3.2922]
[1729165219773,3.2918,151.93,151.91,3.2922]
[1729165221080,4.82,151.95,151.86,14.94]
[1729165221081,10.12,151.92,151.86,14.94]
[1729165221277,10.12,151.9,151.86,14.94]
[1729165221479,10.12,151.89,151.84,14.78048976]
[1729165221674,10.12,151.89,151.84,19.60048976]
[1729165221871,4.82,151.91,151.84,19.60048976]
[1729165222071,4.82,151.91,151.86,10.12]
[1729165222072,10.12,151.9,151.86,10.12]
[1729165222682,13.4124,151.9,151.87,3.293]
[1729165223787,8.1123,151.91,151.88,3.2926]
[1729165223989,8.1123,151.91,151.87,10.12]
[1729165224486,8.1123,151.91,151.88,3.2927]
[1729165224982,14.94,151.91,151.88,3.2927]
[1729165225184,13.4124,151.9,151.88,3.2927]
[1729165226185,18.2323,151.91,151.89,3.2926]
[1729165226991,18.2323,151.91,151.85,10.12]
[1729165227182,18.2323,151.91,151.88,3.2927]
[1729165228090,14.94,151.91,151.88,3.2927]
[1729165228286,3.2924,151.9,151.88,3.2927]
[1729165228784,4.82,151.91,151.85,10.12]
[1729165229090,4.82,151.91,151.88,10.12]
[1729165229383,10.12,151.93,151.88,10.12]
[1729165229593,14.94,151.95,151.9,10.12]
[1729165229783,4.82,151.95,151.91,10.12]
[1729165230086,4.82,151.95,151.92,3.22650474]
[1729165230292,3.2917,151.94,151.92,6.51830474]
[1729165230691,13.4117,151.94,151.92,6.51830474]
[1729165231282,13.4117,151.94,151.92,3.22650474]
[1729165231586,13.4117,151.94,151.91,3.2921]
[1729165231777,13.4117,151.94,151.92,3.25726557]
[1729165234996,10.12,151.94,151.92,3.25726557]
[1729165235200,3.2918,151.93,151.92,3.25726557]
[1729165236090,10.12,151.94,151.92,3.25726557]
[1729165236290,13.4118,151.94,151.91,3.2921]
[1729165236595,13.4118,151.94,151.92,3.28262547]
[1729165236792,10.12,151.94,151.92,3.28262547]
[1729165236985,10.12,151.93,151.88,14.94]
[1729165237180,4.82,151.95,151.88,4.82]
[1729165237181,10.12,151.92,151.88,4.82]
[1729165237490,13.4125,151.9,151.88,3.2927]
[1729165238094,13.4125,151.9,151.86,10.12]
[1729165238288,13.4125,151.9,151.88,3.2928]
[1729165238889,13.4123,151.91,151.88,3.2928]
[1729165239201,10.12,151.93,151.9,3.2924]
[1729165239885,3.2921,151.92,151.9,3.2924]
[1729165240088,3.2921,151.92,151.89,10.12]
[1729165240089,3.2921,151.92,151.89,13.4126]
[1729165240290,10.12,151.93,151.89,3.2926]
[1729165240498,3.2922,151.91,151.89,3.2926]
[1729165241399,3.2922,151.91,151.89,13.4126]
[1729165245297,3.2917,151.94,151.91,3.2921]
[1729165245597,3.2917,151.94,151.92,10.12]
[1729165245797,3.2917,151.94,151.93,3.24891643]
[1729165246201,3.2919,151.93,151.9,3.2923]
[1729165247106,3.2918,151.93,151.9,3.2923]
[1729165247305,10.12,151.94,151.86,1.3675]
[1729165247505,10.12,151.94,151.89,3.2925]
[1729165247703,3.2923,151.91,151.89,3.2925]
[1729165248507,13.4123,151.91,151.89,3.2925]
[1729165249502,3.2923,151.91,151.89,3.2925]
[1729165249703,10.12,151.92,151.86,11.4875]
[1729165249903,3.2924,151.9,151.88,3.2927]
[1729165250205,10.12,151.89,151.83,10.12]
[1729165250407,13.4132,151.87,151.84,6.54098976]
[1729165250608,10.12,151.87,151.84,3.2936]
[1729165250801,10.12,151.87,151.84,6.52703598]
[1729165251408,3.2934,151.86,151.84,6.52703598]
[1729165252111,10.12,151.87,151.84,6.52703598]
[1729165252314,14.94,151.9,151.86,3.2932]
[1729165252606,10.12,151.88,151.84,10.12]
[1729165252811,10.12,151.88,151.84,13.44378715]
[1729165253407,3.2931,151.87,151.85,3.2935]
[1729165260507,10.12,151.87,151.84,3.32378715]
[1729165260819,13.4135,151.85,151.8,11.5224]
[1729165261121,10.12,151.85,151.82,10.12]
[1729165262420,13.4135,151.85,151.83,3.2937]
[1729165262618,13.4135,151.85,151.84,3.29907865]
[1729165262817,10.12,151.88,151.84,10.12]
[1729165263028,1.4006,151.89,151.85,10.12]
[1729165263029,10.12,151.89,151.85,10.12]
[1729165263721,3.293,151.88,151.85,13.4134]
[1729165264112,3.2925,151.9,151.88,3.2927]
[1729165264315,4.82,151.91,151.88,3.2927]
[1729165265019,8.1124,151.91,151.89,3.339605]
[1729165266013,18.2324,151.91,151.89,3.339605]
[1729165266217,3.2929,151.88,151.86,3.2932]
[1729165266417,10.12,151.9,151.86,3.2932]
[1729165266921,3.2927,151.89,151.87,3.22527559]
[1729165268222,3.2927,151.89,151.86,3.2932]
[1729165268423,3.2927,151.89,151.87,3.24462192]
[1729165269022,4.82,151.91,151.83,4.82]
[1729165269023,10.12,151.88,151.83,10.12]
[1729165269220,10.12,151.84,151.8,16.3424]
[1729165269619,10.12,151.84,151.82,3.294]
[1729165271519,10.12,151.83,151.8,3.2944]
[1729165271725,10.12,151.82,151.8,3.2944]
[1729165273523,13.4142,151.82,151.8,3.2944]
[1729165274023,3.2942,151.82,151.8,3.2944]
[1729165275127,15.82,151.85,151.77,4.82]
[1729165275333,4.82,151.87,151.8,15.82]
[1729165275829,4.82,151.87,151.82,3.294]
[1729165275830,3.2938,151.84,151.82,3.294]
[1729165276027,3.2938,151.84,151.78,15.82]
[1729165276530,3.2938,151.84,151.82,3.2941]
[1729165277433,3.2938,151.84,151.78,15.82]
[1729165277624,3.2938,151.84,151.81,3.2943]
[1729165279332,3.294,151.83,151.81,3.2943]
[1729165279520,3.294,151.83,151.8,3.2945]
[1729165284338,3.294,151.83,151.81,3.2943]
[1729165285135,3.2943,151.82,151.76,20.51414642]
[1729165285333,3.2943,151.82,151.77,4.82]
[1729165286526,3.2943,151.82,151.8,3.2945]
[1729165292336,15.82,151.85,151.77,4.82]
[1729165292542,3.2944,151.81,151.77,4.82]
[1729165293544,3.2944,151.81,151.76,4.69414642]
[1729165293937,13.4244,151.81,151.77,10.13]
[1729165294246,13.4242,151.82,151.78,10.13]
[1729165295242,10.13,151.81,151.78,3.2948]
[1729165295444,10.13,151.8,151.76,3.23454642]
[1729165295639,10.13,151.8,151.75,11.4931]
[1729165295841,13.4247,151.8,151.77,3.2951]
[1729165296147,10.13,151.8,151.77,3.34059153]
[1729165296448,13.4247,151.8,151.77,3.2951]
[1729165296744,13.4247,151.8,151.77,6.52516656]
[1729165297249,3.2948,151.79,151.77,6.52516656]
[1729165298453,10.13,151.8,151.77,3.23006656]
[1729165298745,10.13,151.82,151.78,10.13]
[1729165299248,3.2945,151.81,151.78,13.4248]
[1729165299444,3.2945,151.81,151.78,16.66519452]
[1729165299645,3.2945,151.81,151.78,13.37039452]
[1729165299847,3.2945,151.81,151.79,3.2947]
[1729165300442,3.2945,151.81,151.78,6.53529452]
[1729165300639,3.2945,151.81,151.78,3.2949]
[1729165301440,10.13,151.79,151.73,74.54194849]
[1729165301643,10.13,151.78,151.73,74.54194849]
[1729165302047,10.13,151.78,151.73,77.82420346]
[1729165302249,13.4252,151.78,151.75,3.2955]
[1729165302951,3.2952,151.77,151.75,3.2955]
[1729165303844,13.4251,151.78,151.75,3.2955]
[1729165304244,3.2951,151.78,151.75,3.2955]
[1729165304845,3.295,151.78,151.76,3.2953]
[1729165305342,1.4589,151.82,151.75,10.13]
[1729165305543,3.2947,151.8,151.77,3.2951]
[1729165305750,3.2947,151.8,151.78,3.26411587]
[1729165305954,10.13,151.81,151.78,3.26411587]
[1729165306150,3.2948,151.79,151.78,3.26411587]
[1729165307053,10.13,151.81,151.78,3.26411587]
[1729165307254,3.2947,151.8,151.78,3.295]
[1729165307550,3.2947,151.8,151.78,6.62515772]
[1729165307753,13.4247,151.8,151.78,3.295]
[1729165307952,3.2948,151.79,151.77,3.2951]
[1729165308155,13.4248,151.79,151.77,3.2951]
[1729165308449,13.4248,151.79,151.74,10.13]
[1729165308450,10.13,151.78,151.74,3.34235489]
[1729165308651,10.13,151.78,151.63,8.29148109]
[1729165308652,10.13,151.75,151.69,10.13]
[1729165308955,13.4262,151.73,151.7,3.2966]
[1729165309452,13.4262,151.73,151.71,3.36433306]
[1729165309855,20.66,151.75,151.68,4.82]
[1729165310157,20.66,151.75,151.66,20.66]
[1729165310158,3.2962,151.73,151.66,20.66]
[1729165310848,3.2962,151.73,151.71,3.2965]
[1729165311047,3.2962,151.73,151.71,3.28520332]
[1729165311346,3.2962,151.73,151.66,20.66]
[1729165311854,3.2962,151.73,151.7,3.2967]
[1729165312052,20.66,151.75,151.7,3.2967]
[1729165312354,3.2964,151.72,151.69,3.297]
[1729165314256,3.2964,151.72,151.7,3.2967]
[1729165314456,15.84,151.73,151.65,4.82]
[1729165314860,3.2967,151.71,151.65,4.82]
[1729165315248,8.1167,151.71,151.65,4.82]
[1729165315454,8.1167,151.71,151.68,3.297]
[1729165315650,3.2976,151.67,151.53,232.6007]
[1729165315869,3.2976,151.67,151.58,15.84]
[1729165316157,3.2976,151.67,151.63,3.2981]
[1729165316468,3.2976,151.67,151.64,3.31234208]
[1729165316762,3.2976,151.67,151.6,18.7466]
[1729165317759,3.2976,151.67,151.64,3.298]
[1729165317968,3.2976,151.67,151.64,6.54602796]
[1729165318667,3.2976,151.67,151.64,3.24802796]
[1729165318876,3.2976,151.67,151.63,3.2982]
[1729165319251,3.2978,151.66,151.63,3.22282267]
[1729165319460,20.66,151.67,151.63,3.22282267]
[1729165319757,3.2983,151.64,151.6,3.2988]
[1729165320062,3.2983,151.64,151.58,20.66]
[1729165320462,3.2983,151.64,151.61,3.2986]
[1729165320664,3.2983,151.64,151.62,3.28748367]
[1729165321055,3.2983,151.64,151.61,3.2986]
[1729165321460,3.2983,151.64,151.58,20.66]
[1729165321955,3.2983,151.64,151.58,4.82]
[1729165323066,3.2983,151.64,151.61,3.2986]
[1729165323256,3.2983,151.64,151.61,6.5485736]
[1729165323455,20.66,151.67,151.61,3.2499736]
[1729165323671,20.66,151.67,151.58,4.82]
[1729165324263,3.2982,151.64,151.61,3.2987]
[1729165324463,15.84,151.65,151.61,3.28758751]
[1729165324664,15.84,151.65,151.58,4.82]
[1729165325367,3.2984,151.63,151.6,3.2988]
[1729165325669,3.2984,151.63,151.61,3.23356628]
[1729165325967,3.2984,151.63,151.6,3.2988]
[1729165326361,3.2984,151.63,151.61,3.27778937]
[1729165327169,3.2986,151.62,151.59,3.299]
[1729165328172,3.2989,151.61,151.58,3.2993]
[1729165328373,15.84,151.61,151.53,3.23021789]
[1729165328578,15.84,151.61,151.51,4.82]
[1729165328878,3.2993,151.59,151.56,3.2998]
[1729165329270,18.6917,151.65,151.51,8.17182181]
[1729165329271,20.66,151.58,151.51,3.35182181]
[1729165329574,20.66,151.58,151.43,107.326341]
[1729165329575,15.84,151.55,151.45,15.84]
[1729165329868,3.3003,151.54,151.51,3.3009]
[1729165330069,4.82,151.53,151.51,3.3009]
[1729165331967,4.82,151.53,151.45,19.20634329]
[1729165331968,4.82,151.53,151.52,3.3007]
[1729165332275,3.3001,151.55,151.52,3.3007]
[1729165332472,4.82,151.54,151.52,3.3007]